bitfinex/quotes_SOLUSD_20250410
["timestamp","ask_amount","ask_price","bid_price","bid_amount"]
[1744295042175,8.7997,113.64,113.58,38.86092739]
[1744295042176,8.7997,113.64,113.58,40.43112739]
[1744295042355,47.59762739,113.64,113.59,38.79792739]
[1744295042555,47.59722739,113.65,113.61,8.802]
[1744295042870,8.7993,113.65,113.61,47.59992739]
[1744295043069,47.59722739,113.65,113.6,47.60042739]
[1744295043377,38.79792739,113.64,113.59,47.60102739]
[1744295043674,38.79792739,113.63,113.58,126.01397994]
[1744295043873,38.79792739,113.63,113.58,49.23502739]
[1744295044587,47.59902739,113.63,113.58,49.23502739]
[1744295045075,38.79792739,113.62,113.58,10.4371]
[1744295045376,47.59902739,113.63,113.58,49.23502739]
[1744295045745,8.7999,113.64,113.59,38.79792739]
[1744295045967,38.79792739,113.63,113.58,40.43112739]
[1744295046166,38.79792739,113.6,113.58,0.063]
[1744295046386,38.79792739,113.59,113.58,0.063]
[1744295047098,43.9939,113.66,113.58,38.86092739]
[1744295047387,38.79792739,113.63,113.58,38.86092739]
[1744295047577,8.7989,113.65,113.58,38.86092739]
[1744295047762,38.79792739,113.64,113.59,38.79792739]
[1744295047959,8.7989,113.65,113.59,38.79792739]
[1744295048161,38.79792739,113.63,113.58,0.063]
[1744295048671,38.79792739,113.61,113.58,0.063]
[1744295048874,8.8004,113.63,113.58,0.063]
[1744295049079,47.59832739,113.63,113.58,38.86092739]
[1744295049685,47.59792739,113.64,113.59,38.79792739]
[1744295050159,38.79792739,113.63,113.58,38.86092739]
[1744295050783,47.59902739,113.63,113.58,47.66472739]
[1744295050980,38.79792739,113.62,113.58,0.063]
[1744295051684,38.79792739,113.6,113.58,0.063]
[1744295052182,38.79792739,113.59,113.58,0.063]
[1744295052560,26.0,113.6,113.58,0.063]
[1744295052760,47.60142739,113.59,113.58,0.063]
[1744295053197,38.79792739,113.6,113.58,0.063]
[1744295053367,8.8015,113.62,113.58,0.063]
[1744295053568,47.59942739,113.62,113.58,0.063]
[1744295053892,38.79792739,113.61,113.58,0.063]
[1744295054185,47.59942739,113.62,113.58,0.063]
[1744295054393,38.79792739,113.61,113.58,0.063]
[1744295054758,47.60002739,113.61,113.58,0.063]
[1744295054957,38.79792739,113.61,113.58,0.063]
[1744295055567,47.59952739,113.62,113.58,0.063]
[1744295056069,38.79792739,113.6,113.58,0.063]
[1744295056294,38.79792739,113.59,113.58,0.063]
[1744295056992,47.60142739,113.59,113.58,0.063]
[1744295057561,8.8035,113.59,113.58,0.063]
[1744295057840,47.60142739,113.59,113.58,0.063]
[1744295058096,105.33332678,113.59,113.58,0.0001]
[1744295058300,47.60142739,113.59,113.58,0.0001]
[1744295059766,64.79792739,113.59,113.58,0.0001]
[1744295061097,73.60142739,113.59,113.58,0.0001]
[1744295061683,8.8029,113.6,113.58,0.0001]
[1744295061891,12.3,113.64,113.58,0.0001]
[1744295062069,38.79792739,113.63,113.58,38.79802739]
[1744295062698,38.79792739,113.61,113.58,0.0001]
[1744295062894,38.79792739,113.62,113.58,0.0001]
[1744295063105,47.59862739,113.63,113.58,38.79802739]
[1744295063399,47.59862739,113.63,113.58,0.0001]
[1744295063613,8.8007,113.63,113.58,38.79802739]
[1744295063775,47.59862739,113.63,113.59,38.79792739]
[1744295064182,0.03,113.64,113.59,38.79792739]
[1744295064385,0.03,113.64,113.6,38.79792739]
[1744295065411,0.03,113.64,113.61,8.802]
[1744295065706,0.03,113.64,113.61,47.59992739]
[1744295065876,0.03,113.64,113.63,44.86182739]
[1744295066695,0.03,113.64,113.61,8.802]
[1744295067006,0.03,113.64,113.6,54.00822739]
[1744295067203,38.82792739,113.64,113.6,6.4079]
[1744295067372,38.79792739,113.63,113.6,6.4079]
[1744295067572,47.59862739,113.63,113.6,6.4079]
[1744295067814,8.8303,113.64,113.6,54.00842739]
[1744295067993,47.62822739,113.64,113.6,6.4079]
[1744295069089,47.62822739,113.64,113.6,15.2107]
[1744295069292,0.03,113.64,113.6,54.00862739]
[1744295069510,0.03,113.64,113.6,45.20582739]
[1744295069683,0.03,113.64,113.6,6.4079]
[1744295069684,38.82792739,113.64,113.6,6.4079]
[1744295070092,38.82792739,113.64,113.6,45.20582739]
[1744295070610,0.03,113.64,113.6,45.20582739]
[1744295070816,0.03,113.64,113.6,54.00802739]
[1744295071415,0.03,113.64,113.63,38.79792739]
[1744295071611,0.03,113.64,113.63,47.88265053]
[1744295072198,30.34,113.71,113.63,47.59832739]
[1744295072403,38.79792739,113.7,113.65,38.79792739]
[1744295072703,38.79792739,113.7,113.66,38.79792739]
[1744295072886,38.79792739,113.69,113.65,38.79792739]
[1744295073081,38.79792739,113.7,113.65,38.79792739]
[1744295073490,38.79792739,113.69,113.65,38.79792739]
[1744295073689,38.79792739,113.69,113.64,8.7992]
[1744295073690,8.8238,113.72,113.66,38.79792739]
[1744295073897,8.8238,113.72,113.68,38.79792739]
[1744295074395,38.82792739,113.72,113.68,38.79792739]
[1744295074605,0.03,113.72,113.68,38.79792739]
[1744295074789,0.03,113.72,113.71,38.79792739]
[1744295075194,0.03,113.76,113.71,77.06327569]
[1744295075390,0.03,113.76,113.73,38.79792739]
[1744295075911,0.03,113.76,113.75,38.79792739]
[1744295076284,0.03,113.76,113.74,6.4904]
[1744295076487,8.7869,113.81,113.75,40.35042739]
[1744295076700,8.786,113.82,113.76,38.79792739]
[1744295076905,8.786,113.82,113.77,38.79792739]
[1744295077204,38.79792739,113.81,113.77,38.79792739]
[1744295077408,38.79792739,113.82,113.78,38.79792739]
[1744295077615,8.7861,113.82,113.75,1.5525]
[1744295077904,8.7861,113.82,113.75,40.35042739]
[1744295077905,38.79792739,113.8,113.75,40.35042739]
[1744295078107,8.7861,113.82,113.76,38.79792739]
[1744295078516,38.79792739,113.81,113.76,38.79792739]
[1744295079009,38.79792739,113.81,113.75,78.33145255]
[1744295079209,38.79792739,113.81,113.76,38.79792739]
[1744295079807,8.7851,113.83,113.77,38.79792739]
[1744295080111,38.79792739,113.82,113.77,38.79792739]
[1744295080411,38.79792739,113.8,113.75,1.5525]
[1744295080709,38.79792739,113.8,113.75,40.35042739]
[1744295080909,38.79792739,113.78,113.74,6.4904]
[1744295081690,8.7896,113.77,113.74,6.4904]
[1744295081889,47.58752739,113.77,113.74,6.4904]
[1744295082119,47.58712739,113.78,113.74,6.4904]
[1744295082414,38.79792739,113.78,113.74,6.4904]
[1744295082589,21.9686,113.8,113.74,45.28832739]
[1744295082792,37.79792739,113.79,113.74,45.28832739]
[1744295083009,38.79792739,113.79,113.74,45.28832739]
[1744295083514,38.79792739,113.79,113.74,6.4904]
[1744295083693,47.58672739,113.78,113.74,45.28832739]
[1744295083898,8.7888,113.78,113.74,45.28832739]
[1744295084127,47.58672739,113.78,113.74,6.4904]
[1744295084707,8.7888,113.78,113.74,6.4904]
[1744295084916,47.58672739,113.78,113.74,6.4904]
[1744295085211,38.79792739,113.77,113.74,6.4904]
[1744295085413,38.79792739,113.77,113.72,40.45942739]
[1744295085615,38.79792739,113.75,113.71,6.6339]
[1744295085820,47.59062739,113.73,113.69,38.79792739]
[1744295086117,8.7921,113.74,113.69,38.79792739]
[1744295086312,8.7921,113.74,113.7,38.79792739]
[1744295086714,47.59002739,113.74,113.69,38.79792739]
[1744295086901,8.7921,113.74,113.69,38.79792739]
[1744295087105,8.7921,113.74,113.68,7.9146]
[1744295087106,47.59002739,113.74,113.7,38.79792739]
[1744295088198,47.58942739,113.75,113.7,38.79792739]
[1744295088394,8.7915,113.75,113.7,38.79792739]
[1744295088591,47.58942739,113.75,113.7,38.79792739]
[1744295088898,38.79792739,113.74,113.7,38.79792739]
[1744295089096,38.79792739,113.74,113.68,7.9146]
[1744295089296,38.79792739,113.74,113.69,38.79792739]
[1744295089715,38.79792739,113.72,113.68,7.9146]
[1744295089917,47.59222739,113.71,113.67,76.77895255]
[1744295090114,47.59222739,113.71,113.66,38.79792739]
[1744295090320,8.7943,113.71,113.66,38.79792739]
[1744295090627,47.59222739,113.71,113.66,38.79792739]
[1744295090814,12.22,113.75,113.68,38.79792739]
[1744295091014,47.58982739,113.74,113.69,38.79792739]
[1744295092417,38.79792739,113.72,113.66,76.77895255]
[1744295092620,38.79792739,113.72,113.67,38.79792739]
[1744295092830,38.79792739,113.72,113.68,38.79792739]
[1744295093031,8.7919,113.74,113.7,38.79792739]
[1744295093206,47.58982739,113.74,113.7,38.79792739]
[1744295093405,47.58982739,113.74,113.69,38.79792739]
[1744295093811,38.79792739,113.73,113.69,38.79792739]
[1744295094006,47.59122739,113.73,113.69,38.79792739]
[1744295095025,47.59122739,113.73,113.68,38.79792739]
[1744295095427,38.79792739,113.72,113.66,76.77895255]
[1744295095735,38.79792739,113.71,113.66,76.77895255]
[1744295096035,38.79792739,113.7,113.65,46.53762739]
[1744295096204,38.79792739,113.69,113.65,7.7397]
[1744295096920,38.79792739,113.69,113.65,46.53762739]
[1744295097417,47.59332739,113.7,113.65,46.53762739]
[1744295098122,38.79792739,113.69,113.65,46.53762739]
[1744295098340,38.79792739,113.68,113.62,16.4959]
[1744295098637,8.795,113.7,113.65,38.79792739]
[1744295098803,18.64964886,113.72,113.65,38.79792739]
[1744295099008,38.79792739,113.71,113.66,38.79792739]
[1744295099426,38.79792739,113.7,113.66,38.79792739]
[1744295099731,8.7935,113.72,113.66,38.79792739]
[1744295099732,38.79792739,113.71,113.66,38.79792739]
[1744295099905,38.79792739,113.7,113.63,95.71292455]
[1744295100235,38.79792739,113.7,113.66,38.79792739]
[1744295100426,38.79792739,113.71,113.67,38.79792739]
[1744295100610,8.7939,113.72,113.67,38.79792739]
[1744295100810,38.79792739,113.71,113.67,38.79792739]
[1744295101118,38.79792739,113.71,113.66,38.79792739]
[1744295101519,38.79792739,113.72,113.68,38.79792739]
[1744295102318,59.81032739,113.74,113.69,38.79792739]
[1744295102512,47.58832739,113.76,113.71,38.79792739]
[1744295102707,38.79792739,113.75,113.68,78.30465255]
[1744295102913,38.79792739,113.72,113.67,44.95532739]
[1744295103332,38.79792739,113.71,113.67,44.95532739]
[1744295103710,38.79792739,113.72,113.67,44.95532739]
[1744295104012,0.28432314,113.75,113.67,44.95532739]
[1744295104334,8.794,113.72,113.68,38.79792739]
[1744295104629,47.58872739,113.76,113.71,38.79792739]
[1744295104813,8.7908,113.76,113.72,38.79792739]
[1744295105018,21.973,113.78,113.73,38.79792739]
[1744295105019,8.79,113.77,113.73,38.79792739]
[1744295105214,47.58792739,113.77,113.7,40.70485053]
[1744295105522,8.79,113.77,113.73,38.79792739]
[1744295105833,8.7893,113.78,113.74,38.79792739]
[1744295106421,47.58722739,113.78,113.73,38.79792739]
[1744295106618,38.79792739,113.78,113.74,38.79792739]
[1744295106825,8.7881,113.79,113.75,38.79792739]
[1744295107020,38.79792739,113.77,113.73,38.79792739]
[1744295107220,8.7881,113.79,113.73,38.79792739]
[1744295107420,47.58562739,113.8,113.75,38.79792739]
[1744295107627,47.58482739,113.81,113.77,38.79792739]
[1744295107837,47.58482739,113.81,113.76,38.79792739]
[1744295108144,8.7869,113.81,113.78,38.79792739]
[1744295108323,8.7869,113.81,113.77,38.79792739]
[1744295108841,47.58402739,113.82,113.77,38.79792739]
[1744295109040,8.7861,113.82,113.77,38.79792739]
[1744295109347,47.58402739,113.82,113.75,8.7908]
[1744295109543,8.7861,113.82,113.75,8.7908]
[1744295109750,38.79792739,113.81,113.77,38.79792739]
[1744295109922,47.58402739,113.82,113.77,38.79792739]
[1744295110341,0.03,113.83,113.79,38.79792739]
[1744295110529,38.82792739,113.83,113.77,8.7894]
[1744295110822,38.79792739,113.82,113.78,38.79792739]
[1744295111132,0.03,113.83,113.78,38.79792739]
[1744295111355,38.82792739,113.83,113.78,38.79792739]
[1744295111521,0.03,113.83,113.81,38.79792739]
[1744295112327,0.03,113.83,113.8,6.2281]
[1744295112527,0.03,113.83,113.81,38.79792739]
[1744295112934,0.03,113.83,113.8,38.79792739]
[1744295113122,0.03,113.83,113.79,6.2275]
[1744295113544,38.79792739,113.82,113.76,16.4463]
[1744295113751,0.03,113.83,113.77,38.79792739]
[1744295114064,38.82792739,113.83,113.78,38.79792739]
[1744295114344,8.815,113.83,113.79,38.79792739]
[1744295114551,47.61292739,113.83,113.79,38.79792739]
[1744295114734,47.61292739,113.83,113.76,16.4464]
[1744295114735,38.79792739,113.82,113.76,16.4464]
[1744295114935,38.79792739,113.82,113.76,7.6565]
[1744295115132,30.7775,113.83,113.76,38.79792739]
[1744295115332,38.79792739,113.8,113.75,38.79792739]
[1744295115542,38.79792739,113.8,113.73,16.4115]
[1744295115742,18.64964886,113.82,113.76,38.79792739]
[1744295115942,38.79792739,113.81,113.76,38.79792739]
[1744295116152,38.79792739,113.8,113.75,38.79792739]
[1744295116351,47.58642739,113.79,113.75,38.79792739]
[1744295116850,47.58642739,113.79,113.74,38.79792739]
[1744295117165,38.79792739,113.82,113.77,38.79792739]
[1744295117329,38.79792739,113.82,113.73,35.06104886]
[1744295117330,38.79792739,113.79,113.73,7.619]
[1744295117527,38.79792739,113.77,113.72,38.79792739]
[1744295117943,18.64964886,113.81,113.74,38.79792739]
[1744295118137,38.79792739,113.79,113.74,38.79792739]
[1744295118339,38.79792739,113.78,113.71,8.7943]
[1744295118540,38.79792739,113.78,113.73,38.79792739]
[1744295118855,38.79792739,113.78,113.74,38.79792739]
[1744295119055,38.79792739,113.78,113.73,38.79792739]
[1744295119234,38.79792739,113.77,113.73,38.79792739]
[1744295119441,38.79792739,113.77,113.7,93.80735255]
[1744295119640,38.79792739,113.77,113.72,38.79792739]
[1744295119835,38.79792739,113.75,113.71,38.79792739]
[1744295120035,38.79792739,113.75,113.7,47.03162739]
[1744295120246,38.79792739,113.74,113.69,38.79792739]
[1744295120437,38.79792739,113.74,113.67,101.34455037]
[1744295120438,47.59052739,113.74,113.7,38.79792739]
[1744295121227,8.7926,113.74,113.7,38.79792739]
[1744295121626,47.58942739,113.75,113.71,38.79792739]
[1744295122053,8.7915,113.75,113.71,38.79792739]
[1744295122256,47.58862739,113.76,113.72,38.79792739]
[1744295122441,8.7907,113.76,113.72,38.79792739]
[1744295122629,38.79792739,113.77,113.72,38.79792739]
[1744295122838,26.36614886,113.79,113.72,38.79792739]
[1744295122839,38.79792739,113.78,113.73,38.79792739]
[1744295123031,38.79792739,113.77,113.69,40.78031043]
[1744295123251,38.79792739,113.75,113.71,38.79792739]
[1744295123459,38.79792739,113.74,113.68,8.7966]
[1744295123636,38.79792739,113.73,113.68,47.59452739]
[1744295123960,0.28432314,113.76,113.69,38.79792739]
[1744295124159,38.79792739,113.73,113.68,38.79792739]
[1744295124547,47.59132739,113.73,113.68,38.79792739]
[1744295124863,38.79792739,113.72,113.68,38.79792739]
[1744295125162,38.79792739,113.71,113.66,38.86092739]
[1744295125657,15.375,113.73,113.66,0.063]
[1744295125868,38.79792739,113.71,113.66,38.86092739]
[1744295126071,47.59252739,113.71,113.66,38.86092739]
[1744295126433,8.7946,113.71,113.66,38.86092739]
[1744295126639,47.59252739,113.71,113.66,38.86092739]
[1744295127176,47.59182739,113.72,113.67,38.79792739]
[1744295127468,47.59182739,113.72,113.68,38.79792739]
[1744295127653,47.59182739,113.72,113.67,38.79792739]
[1744295127960,38.79792739,113.71,113.66,38.86092739]
[1744295128162,8.795,113.7,113.66,38.86092739]
[1744295128962,8.795,113.7,113.66,0.063]
[1744295129266,8.7947,113.71,113.67,38.79792739]
[1744295129561,38.79792739,113.69,113.66,0.063]
[1744295129946,8.7947,113.71,113.67,38.79792739]
[1744295130265,47.59262739,113.71,113.66,0.063]
[1744295130448,47.59262739,113.71,113.66,38.86092739]
[1744295130959,38.79792739,113.69,113.66,0.063]
[1744295131141,38.79792739,113.68,113.66,0.063]
[1744295131342,38.79792739,113.69,113.66,0.063]
[1744295132174,38.79792739,113.68,113.66,0.063]
[1744295132343,8.7965,113.69,113.66,0.063]
[1744295132661,47.59442739,113.69,113.66,0.063]
[1744295133670,8.7965,113.69,113.66,0.063]
[1744295134240,38.79792739,113.68,113.66,0.063]
[1744295134439,38.79792739,113.67,113.66,0.063]
[1744295134667,57.44757625,113.67,113.66,0.063]
[1744295135864,18.64964886,113.68,113.66,0.063]
[1744295136079,38.79792739,113.67,113.66,0.063]
[1744295136567,47.59522739,113.67,113.66,0.063]
[1744295137964,8.7973,113.67,113.66,0.063]
[1744295138481,47.59522739,113.67,113.66,0.063]
[1744295138884,8.7973,113.67,113.66,0.063]
[1744295139386,38.79792739,113.68,113.66,0.063]
[1744295139387,47.59482739,113.68,113.66,0.063]
[1744295139676,21.9896,113.69,113.66,0.063]
[1744295139677,8.7963,113.69,113.66,0.063]
[1744295139853,38.79792739,113.68,113.66,0.063]
[1744295140051,47.59422739,113.69,113.66,0.063]
[1744295140251,47.59332739,113.7,113.66,0.063]
[1744295140479,47.59142739,113.72,113.66,8.8606]
[1744295140682,38.79792739,113.71,113.67,38.79792739]
[1744295141049,38.79792739,113.71,113.66,0.063]
[1744295141269,38.79792739,113.71,113.67,38.79792739]
[1744295141473,47.59142739,113.72,113.68,38.79792739]
[1744295141983,47.59142739,113.72,113.67,38.79792739]
[1744295142369,47.59142739,113.72,113.66,38.86092739]
[1744295142370,38.79792739,113.71,113.66,38.86092739]
[1744295142661,38.79792739,113.69,113.66,0.063]
[1744295142884,38.79792739,113.7,113.66,0.063]
[1744295143460,38.79792739,113.69,113.66,0.063]
[1744295143661,38.79792739,113.68,113.66,0.063]
[1744295143866,38.79792739,113.67,113.66,0.063]
[1744295144469,47.59522739,113.67,113.66,0.063]
[1744295144867,8.7973,113.67,113.66,0.063]
[1744295145076,47.59522739,113.67,113.66,0.063]
[1744295145989,66.24487625,113.67,113.66,0.063]
[1744295146179,47.59522739,113.67,113.66,0.063]
[1744295146857,8.7973,113.67,113.66,0.063]
[1744295147561,47.59522739,113.67,113.66,0.063]
[1744295148067,66.24487625,113.67,113.66,0.063]
[1744295148770,47.59522739,113.67,113.66,0.063]
[1744295148971,66.24487625,113.67,113.66,0.063]
[1744295149382,27.44694886,113.67,113.66,0.063]
[1744295149703,66.24487625,113.67,113.66,0.063]
[1744295152787,18.64964886,113.66,113.62,0.063]
[1744295152986,38.79792739,113.64,113.62,0.063]
[1744295153218,38.79792739,113.65,113.62,0.063]
[1744295153426,38.79792739,113.66,113.62,0.063]
[1744295153715,38.79792739,113.66,113.62,38.86092739]
[1744295154521,30.7907,113.67,113.62,38.86092739]
[1744295154812,38.79792739,113.67,113.62,38.86092739]
[1744295155010,8.7966,113.68,113.65,38.79792739]
[1744295155185,8.7966,113.68,113.64,38.79792739]
[1744295155387,47.59452739,113.68,113.63,38.79792739]
[1744295156218,38.79792739,113.67,113.62,0.063]
[1744295156512,38.79792739,113.67,113.62,38.86092739]
[1744295156686,8.7981,113.66,113.62,38.86092739]
[1744295157712,8.7981,113.66,113.63,38.79792739]
[1744295157890,8.7981,113.66,113.62,38.86092739]
[1744295158086,8.7981,113.66,113.63,38.79792739]
[1744295158310,8.7977,113.67,113.63,38.79792739]
[1744295158789,47.59562739,113.67,113.63,38.79792739]
[1744295158984,47.59562739,113.67,113.62,38.86092739]
[1744295159716,69.58902739,113.67,113.62,38.86092739]
[1744295160107,8.7977,113.67,113.63,38.79792739]
[1744295160413,8.795,113.7,113.65,38.79792739]
[1744295160619,8.795,113.7,113.68,38.79792739]
[1744295160920,8.7912,113.75,113.69,38.79792739]
[1744295161123,38.79792739,113.73,113.68,38.79792739]
[1744295161306,38.79792739,113.71,113.66,1.5019]
[1744295161624,38.79792739,113.72,113.67,38.79792739]
[1744295161790,38.79792739,113.71,113.67,38.79792739]
[1744295162124,38.79792739,113.68,113.64,6.6063]
[1744295162289,38.79792739,113.66,113.63,1.5334]
[1744295162494,0.28432314,113.68,113.61,45.01012739]
[1744295162719,38.79792739,113.66,113.61,45.01012739]
[1744295163027,38.79792739,113.63,113.61,0.063]
[1744295163929,30.7962,113.65,113.61,0.063]
[1744295164413,38.79792739,113.64,113.61,0.063]
[1744295164618,47.59682739,113.65,113.61,38.86092739]
[1744295164800,21.9943,113.67,113.61,0.063]
[1744295164801,38.79792739,113.64,113.61,0.063]
[1744295164989,30.7916,113.67,113.61,0.063]
[1744295165186,38.79792739,113.65,113.61,0.063]
[1744295165815,30.7916,113.67,113.61,38.86092739]
[1744295166003,38.79792739,113.66,113.61,38.86092739]
[1744295166210,47.59522739,113.67,113.62,38.86092739]
[1744295166810,8.7973,113.67,113.63,38.79792739]
[1744295167009,47.59522739,113.67,113.63,38.79792739]
[1744295167212,8.7973,113.67,113.63,38.79792739]
[1744295167799,8.7973,113.67,113.64,38.79792739]
[1744295168296,8.7973,113.67,113.62,10.43]
[1744295168497,8.7973,113.67,113.63,38.79792739]
[1744295168703,8.7973,113.67,113.64,38.79792739]
[1744295168921,47.59452739,113.68,113.64,38.79792739]
[1744295169331,47.59452739,113.68,113.62,1.6291]
[1744295169627,38.79792739,113.67,113.62,40.42702739]
[1744295170120,38.79792739,113.67,113.63,38.79792739]
[1744295170728,38.79792739,113.67,113.62,40.42702739]
[1744295171027,8.7981,113.66,113.62,40.42702739]
[1744295171518,8.7981,113.66,113.63,38.79792739]
[1744295171715,38.79792739,113.71,113.65,38.79792739]
[1744295171912,30.7781,113.72,113.68,38.79792739]
[1744295172211,8.7935,113.72,113.69,38.79792739]
[1744295172423,8.7935,113.72,113.7,38.79792739]
[1744295172811,21.9806,113.74,113.7,38.79792739]
[1744295173121,8.7912,113.75,113.71,38.79792739]
[1744295173327,69.56712739,113.75,113.68,1.5738]
[1744295173498,0.03,113.72,113.7,38.79792739]
[1744295174506,0.03,113.72,113.68,1.5738]
[1744295174706,0.03,113.72,113.7,38.79792739]
[1744295175132,0.03,113.72,113.68,1.5738]
[1744295175315,0.03,113.72,113.69,38.79792739]
[1744295175513,0.03,113.72,113.7,38.79792739]
[1744295176402,0.03,113.72,113.69,38.79792739]
[1744295177531,8.8235,113.72,113.68,40.37172739]
[1744295178129,8.8235,113.72,113.69,38.79792739]
[1744295179535,0.03,113.72,113.69,38.79792739]
[1744295180536,0.03,113.72,113.67,85.57625255]
[1744295180701,0.03,113.72,113.69,38.79792739]
[1744295180907,0.03,113.72,113.7,38.79792739]
[1744295181329,0.03,113.72,113.67,107.56965255]
[1744295181528,0.03,113.72,113.71,47.59222739]
[1744295182828,0.03,113.72,113.71,38.79792739]
[1744295183337,0.03,113.72,113.71,47.59222739]
[1744295184224,0.03,113.72,113.69,38.79792739]
[1744295184418,0.03,113.72,113.71,38.79792739]
[1744295186041,0.03,113.72,113.7,38.79792739]
[1744295186237,0.03,113.72,113.68,115.57687994]
[1744295186439,38.82792739,113.72,113.68,115.57687994]
[1744295186624,38.79792739,113.71,113.65,97.71775255]
[1744295186811,38.79792739,113.71,113.67,38.79792739]
[1744295187016,38.79792739,113.71,113.66,30.0]
[1744295187314,38.79792739,113.7,113.66,30.0]
[1744295187517,38.79792739,113.68,113.66,30.0]
[1744295188027,38.79792739,113.68,113.64,38.79792739]
[1744295188236,38.79792739,113.67,113.63,76.77895255]
[1744295188543,30.7854,113.69,113.64,38.79792739]
[1744295188840,38.79792739,113.67,113.63,115.57687994]
[1744295189146,38.79792739,113.68,113.63,115.57687994]
[1744295189643,8.7973,113.67,113.63,76.77895255]
[1744295189839,47.59522739,113.67,113.63,115.57687994]
[1744295190034,69.58862739,113.67,113.63,38.79792739]
[1744295190417,30.7907,113.67,113.63,38.79792739]
[1744295190619,69.58862739,113.67,113.62,38.86092739]
[1744295191044,38.79792739,113.65,113.62,0.063]
[1744295191247,38.79792739,113.66,113.62,0.063]
[1744295191538,38.79792739,113.64,113.62,0.063]
[1744295191716,8.7997,113.64,113.62,0.063]
[1744295192035,8.7989,113.65,113.62,38.86092739]
[1744295192215,8.7989,113.65,113.63,38.79792739]
[1744295192413,8.7973,113.67,113.64,38.79792739]
[1744295192827,69.58862739,113.67,113.62,38.86092739]
[1744295193021,38.79792739,113.65,113.62,0.063]
[1744295193226,38.79792739,113.64,113.62,0.063]
[1744295193530,38.79792739,113.63,113.62,0.063]
[1744295193714,47.59832739,113.63,113.62,0.063]
[1744295194438,66.24797625,113.63,113.62,0.0001]
[1744295195037,18.64964886,113.62,113.61,0.0001]
[1744295195209,57.73189939,113.62,113.61,0.0001]
[1744295196437,66.24877625,113.62,113.61,0.0001]
[1744295196614,47.59912739,113.62,113.61,0.0001]
[1744295197839,66.53309939,113.62,113.61,0.0001]
[1744295198735,47.59912739,113.62,113.61,0.0001]
[1744295199040,8.8012,113.62,113.61,0.0001]
[1744295199224,47.59912739,113.62,113.61,0.0001]
[1744295199428,8.8012,113.62,113.61,0.0001]
[1744295199732,47.59912739,113.62,113.61,0.0001]
[1744295200330,66.53309939,113.62,113.61,0.0001]
[1744295200639,66.24877625,113.62,113.61,0.0001]
[1744295201541,66.53309939,113.62,113.61,0.0001]
[1744295201745,66.24877625,113.62,113.61,0.0001]
[1744295201922,47.59912739,113.62,113.61,0.0001]
[1744295204133,66.24877625,113.62,113.61,0.0001]
[1744295204931,47.59912739,113.62,113.61,0.0001]
[1744295206034,8.8012,113.62,113.61,0.0001]
[1744295206363,47.59912739,113.62,113.61,0.0001]
[1744295209364,32.99032883,113.62,113.61,0.0001]
[1744295210418,8.8012,113.62,113.61,0.0001]
[1744295210650,32.99032883,113.62,113.61,0.0001]
[1744295211023,51.92430083,113.62,113.61,0.0001]
[1744295211434,26.03845197,113.61,113.6,0.0001]
[1744295211752,34.84045197,113.61,113.6,0.0001]
[1744295212931,53.49010083,113.61,113.6,0.0001]
[1744295213830,24.18912883,113.59,113.58,0.0001]
[1744295214034,42.83877769,113.59,113.58,0.0001]
[1744295215142,18.64964886,113.58,113.57,0.0001]
[1744295215329,44.933972,113.56,113.55,0.063]
[1744295215646,50.18912883,113.56,113.55,0.063]
[1744295215846,58.99502883,113.56,113.55,0.063]
[1744295216561,34.8059,113.56,113.55,0.063]
[1744295216925,58.99502883,113.56,113.55,0.063]
[1744295217143,34.8059,113.56,113.55,0.063]
[1744295218134,8.8053,113.57,113.55,0.063]
[1744295218453,8.8047,113.58,113.55,0.063]
[1744295218646,32.99382883,113.58,113.55,0.063]
[1744295218846,8.8047,113.58,113.55,0.063]
[1744295219156,8.8047,113.58,113.55,24.25212883]
[1744295219364,8.8047,113.58,113.55,0.063]
[1744295219663,32.99112883,113.61,113.56,24.18912883]
[1744295219832,32.99112883,113.61,113.57,24.18912883]
[1744295220154,0.03,113.67,113.59,24.18912883]
[1744295220541,24.18912883,113.64,113.56,0.28432314]
[1744295220731,24.18912883,113.65,113.6,24.18912883]
[1744295220935,8.7995,113.65,113.61,24.18912883]
[1744295221151,8.7995,113.65,113.62,24.18912883]
[1744295221852,0.03,113.67,113.63,24.18912883]